Workbook

Sheet 問題データとグラフ
B1: 問題分析 - パレート図
B2: このセルには、すべての問題領域の発生回数の累積割合についてのパレート図があります。
B4: 問題データ
B6: 問題領域 | C6: 発生回数 | D6: 全体に占める割合 | E6: 累積率
B7: トランスミッション | C7: 35 | D7: =IFERROR(データ[[#This Row],[発生回数]]/SUM(データ[発生回数]), "") -> 23.18% | E7: =IFERROR(SUM(INDEX(データ[発生回数],1):データ[[#This Row],[発生回数]])/SUM(データ[発生回数]), "") -> 23.18%
B8: 燃料システム | C8: 25 | D8: =IFERROR(データ[[#This Row],[発生回数]]/SUM(データ[発生回数]), "") -> 16.56% | E8: =IFERROR(SUM(INDEX(データ[発生回数],1):データ[[#This Row],[発生回数]])/SUM(データ[発生回数]), "") -> 39.74%
B9: その他 | C9: 21 | D9: =IFERROR(データ[[#This Row],[発生回数]]/SUM(データ[発生回数]), "") -> 13.91% | E9: =IFERROR(SUM(INDEX(データ[発生回数],1):データ[[#This Row],[発生回数]])/SUM(データ[発生回数]), "") -> 53.64%
B10: 騒音 | C10: 18 | D10: =IFERROR(データ[[#This Row],[発生回数]]/SUM(データ[発生回数]), "") -> 11.92% | E10: =IFERROR(SUM(INDEX(データ[発生回数],1):データ[[#This Row],[発生回数]])/SUM(データ[発生回数]), "") -> 65.56%
B11: ドライバー制御 | C11: 13 | D11: =IFERROR(データ[[#This Row],[発生回数]]/SUM(データ[発生回数]), "") -> 8.61% | E11: =IFERROR(SUM(INDEX(データ[発生回数],1):データ[[#This Row],[発生回数]])/SUM(データ[発生回数]), "") -> 74.17%
B12: その他の電気系統 | C12: 12 | D12: =IFERROR(データ[[#This Row],[発生回数]]/SUM(データ[発生回数]), "") -> 7.95% | E12: =IFERROR(SUM(INDEX(データ[発生回数],1):データ[[#This Row],[発生回数]])/SUM(データ[発生回数]), "") -> 82.12%
B13: 点火装置 | C13: 10 | D13: =IFERROR(データ[[#This Row],[発生回数]]/SUM(データ[発生回数]), "") -> 6.62% | E13: =IFERROR(SUM(INDEX(データ[発生回数],1):データ[[#This Row],[発生回数]])/SUM(データ[発生回数]), "") -> 88.74%
B14: 冷却システム | C14: 7 | D14: =IFERROR(データ[[#This Row],[発生回数]]/SUM(データ[発生回数]), "") -> 4.64% | E14: =IFERROR(SUM(INDEX(データ[発生回数],1):データ[[#This Row],[発生回数]])/SUM(データ[発生回数]), "") -> 93.38%
B15: ブレーキ | C15: 5 | D15: =IFERROR(データ[[#This Row],[発生回数]]/SUM(データ[発生回数]), "") -> 3.31% | E15: =IFERROR(SUM(INDEX(データ[発生回数],1):データ[[#This Row],[発生回数]])/SUM(データ[発生回数]), "") -> 96.69%
B16: 排ガス | C16: 3 | D16: =IFERROR(データ[[#This Row],[発生回数]]/SUM(データ[発生回数]), "") -> 1.99% | E16: =IFERROR(SUM(INDEX(データ[発生回数],1):データ[[#This Row],[発生回数]])/SUM(データ[発生回数]), "") -> 98.68%
B17: ステアリング | C17: 2 | D17: =IFERROR(データ[[#This Row],[発生回数]]/SUM(データ[発生回数]), "") -> 1.32% | E17: =IFERROR(SUM(INDEX(データ[発生回数],1):データ[[#This Row],[発生回数]])/SUM(データ[発生回数]), "") -> 100.00%
